Cogmind - Beta 13 *** ADVENTURER MODE // 2024.03.15 @ 21:51:53 Player: NED1124 Result: Destroyed by Y-45 Defender with Beam Rifle Performance ------------- Evolutions (1) 500 Regions Visited (2) 400 Robots Destroyed (9) 45 Value Destroyed (247) 247 Prototype IDs (0) 0 Alien Tech Used (0) 0 Bonus (0) 0 TOTAL SCORE: 1192 Bonus ------- None Cogmind --------- Core Integrity 0/400 Matter 244/300 Energy 109/250 System Corruption 0% Temperature Cool (27) Movement Walking (120) Location -9/Materials Parts ------- > --- POWER (1) -------- Ion Engine > --- PROPULSION (3) --- Aluminum Leg Aluminum Leg > --- UTILITY (3) ------ Small Storage Unit Light Armor Plating Trap Extractor (0/4) > --- WEAPON (2) ------- Assault Rifle > --- INVENTORY (8) ---- Light Treads Light Treads Tractor Beam Peak State ------------ > --- POWER ------------ Ion Engine > --- PROPULSION ------- Compact Wheel Compact Wheel > --- UTILITY ---------- Cooling System Small Storage Unit Trap Extractor > --- WEAPON ----------- Light Assault Rifle Light Assault Rifle > --- INVENTORY -------- Ion Engine Light Treads Light Treads Aluminum Leg Aluminum Leg Light Armor Plating Tractor Beam Light Assault Rifle [Rating: 10] Favorites ----------- Power Ion Engine Engine Ion Engine Propulsion Compact Wheel Treads Light Treads Leg Aluminum Leg Wheel Compact Wheel Utility Small Storage Unit Device Heat Sink Storage Small Storage Unit Protection Light Armor Plating Weapon Light Assault Rifle Ballistic Gun Light Assault Rifle Build | -11 -10 -9 ------- Run | Yrd Mat Mat Slots Evolved 2 | . . 2 Power . | . . . Propulsion 1 | . . 1 Utility 1 | . . 1 Weapon . | . . . Parts Attached 18 | 6 3 9 Power 2 | 1 . 1 Engine 2 | 1 . 1 Core . | . . . Reactor . | . . . Propulsion 5 | 2 . 3 Treads 1 | . . 1 Leg 2 | . . 2 Wheel 2 | 2 . . Hover . | . . . Flight . | . . . Utility 7 | 1 3 3 Device 4 | . 2 2 Storage 2 | 1 1 . Processor . | . . . Hackware . | . . . Protection 1 | . . 1 Artifact . | . . . Weapon 4 | 2 . 2 Energy Gun . | . . . Energy Cannon . | . . . Ballistic Gun 4 | 2 . 2 Ballistic Cannon . | . . . Launcher . | . . . Special Weapon . | . . . Impact Weapon . | . . . Slashing Weapon . | . . . Piercing Weapon . | . . . Special Melee Weapon . | . . . Unidentified Prototypes . | . . . Parts Lost 7 | . . 7 Power 1 | . . 1 Propulsion 2 | . . 2 Utility 1 | . . 1 Weapon 3 | . . 3 Highest Loss Streak 7 | . . 7 To Critical Strikes . | . . . Average Slot Usage (%) 83 | . 90 69 Engine 12 | . 14 8 Leg 1 | . . 4 Wheel 23 | . 28 12 Device 8 | . 4 16 Storage 13 | . 14 11 Ballistic Gun 23 | . 28 14 Naked Turns . | . . . Heaviest Build 16 | 12 13 16 Greatest Support 32 | 32 32 32 Greatest Overweight (x) 3 | . . 3 Average Overweight (x) . | . . . Largest Inventory Capacity 20 | 8 20 8 Average Capacity 7 | 7 8 8 Most Carried 8 | 6 8 8 Average Carried 6 | 3 7 6 Final Capacity 8 | 8 8 8 Final Carried 8 | 6 8 3 Class Distribution -------------------- 100% | Mutant Dominant Class ---------------- Mutant | -10/Materials Mutant | -9/Materials Resources | -11 -10 -9 ----------- Run | Yrd Mat Mat Matter Collected 361 | 193 127 41 Remotely 10 | . 10 . Salvage Created 315 | . 131 184 Parts 16 | . 6 10 Haulers Intercepted . | . . . Recyclers Shooed . | . . . Parts Field Recycled . | . . . Retrieved Matter . | . . . Parts Self-Destructed . | . . . Prevented . | . . . Kills | -11 -10 -9 ------- Run | Yrd Mat Mat Combat Hostiles Destroyed 9 | . 5 4 Guns 9 | . 5 4 Classes Destroyed 2 | . 2 . Swarmer 3 | . 3 . Grunt 6 | . 2 4 Best Kill Streak 3 | . 3 3 Combat Bots Only 3 | . 3 3 Max Kills in Single Turn 2 | . 2 1 Gunslinging 1 | . 1 . Exploded . | . . . Melee . | . . . Uniques/NPCs Destroyed . | . . . Combat | -11 -10 -9 -------- Run | Yrd Mat Mat Hostile Shots Fired 162 | . 12 150 Missed 50 | . 1 49 Damage Taken 1128 | . 91 1037 Core 426 | . 16 410 Absorbed by Shields . | . . . Ignored by Resistances 341 | . 30 311 Core Remaining (%) 96 | 100 93 . Volleys Fired 36 | . 15 21 Largest 2 | . 2 2 Hottest 40 | . 40 40 Shots Fired 63 | . 30 33 Gun 63 | . 30 33 Cannon . | . . . Launcher . | . . . Special . | . . . Kinetic 63 | . 30 33 Thermal . | . . . Explosive . | . . . Electromagnetic . | . . . Robot Hit Streak 23 | . 14 23 Robot Miss Streak 2 | . 2 1 Penetration Max . | . . . Secondary Targets 4 | . 2 2 Max Gunslinging Chain 1 | . 1 1 Shots Hit Robots 48 | . 17 31 Core Hits 17 | . 7 10 Critical Kills . | . . . Critical Parts Destroyed . | . . . Critical Strikes . | . . . Melee Attacks . | . . . Impact . | . . . Slashing . | . . . Piercing . | . . . Sneak Attacks . | . . . Combat Hostiles . | . . . Follow-up Attacks . | . . . Damage Inflicted 381 | . 147 234 Guns 368 | . 134 234 Cannons . | . . . Explosions . | . . . Melee . | . . . Ramming 13 | . 13 . Kinetic 368 | . 134 234 Thermal . | . . . Explosive . | . . . Electromagnetic . | . . . Impact . | . . . Slashing . | . . . Piercing . | . . . Highest Corruption . | . . . Average Corruption . | . . . Corruption Purged . | . . . Corruption Blocked . | . . . Overload Shots . | . . . Overflow Damage . | . . . Projectiles . | . . . Explosions . | . . . Melee . | . . . Knockbacks 1 | . 1 . Impact 1 | . 1 . Kinetic . | . . . Secondary . | . . . Self-Inflicted Damage 6 | . 6 . Shots . | . . . Rammed 1 | . 1 . Targets Rammed 1 | . 1 . Kicked . | . . . Crushed . | . . . Highest Temperature 9 | . 6 9 Average Temperature 6 | . 6 7 Received Heat Transfer 687 | . 54 633 Siege Activations . | . . . Robots Corrupted . | . . . Combat Hostiles . | . . . Parts Fried . | . . . Impact Corruptions . | . . . Robots Melted . | . . . Combat Hostiles . | . . . Parts Melted . | . . . Heat Transferred . | . . . Parts Sabotaged . | . . . Parts Stolen . | . . . Parts Stripped . | . . . Power Chain Reactions . | . . . Alert | -11 -10 -9 ------- Run | Yrd Mat Mat Peak Influence 135 | . 135 100 Initial 48 | . . 48 Average 73 | . 91 62 Maximum Alert Level . | . . . Low Security (%) 100 | 100 100 100 Level 1 . | . . . Level 2 . | . . . Level 3 . | . . . Level 4 . | . . . Level 5 . | . . . High Security . | . . . Max Security . | . . . Squads Dispatched . | . . . Investigation . | . . . Extermination . | . . . Reinforcement . | . . . Assault . | . . . Garrison . | . . . Intercept . | . . . Searches Triggered . | . . . Construction Impeded . | . . . Haulers Reinforced . | . . . Active Scanning Responses . | . . . Cargo Convoy Interrupts . | . . . Stealth | -11 -10 -9 --------- Run | Yrd Mat Mat Distress Signals 2 | . 1 1 Communications Jammed . | . . . Distress Signals . | . . . Times Spotted 15 | . 6 9 Peak Tracking Total 7 | . 4 7 Tactical Retreats . | . . . Traps | -11 -10 -9 ------- Run | Yrd Mat Mat Traps Triggered . | . . . Indirectly . | . . . Trap Hack Attempts . | . . . Triggered . | . . . Disarmed . | . . . Reprogrammed . | . . . Reused . | . . . Traps Extracted . | . . . Installed . | . . . Triggered . | . . . Machines | -11 -10 -9 ---------- Run | Yrd Mat Mat Machines Disabled . | . . . Max in Single Turn . | . . . Machines Repaired . | . . . Machines Dismantled . | . . . Machines Sabotaged . | . . . Overloaded Fab Kills . | . . . Hacking | -11 -10 -9 --------- Run | Yrd Mat Mat Machines Accessed 7 | . 6 1 Terminals 7 | . 6 1 Fabricators . | . . . Repair Stations . | . . . Recycling Units . | . . . Scanalyzers . | . . . Garrison Access . | . . . Total Hacks 17 | . 16 1 Successful 12 | . 11 1 Failed 5 | . 5 . Catastrophic . | . . . Database Lockouts . | . . . Manual . | . . . Terminals 17 | . 16 1 Fabricators . | . . . Repair Stations . | . . . Recycling Units . | . . . Scanalyzers . | . . . Garrison Access . | . . . Terminal Hacks 12 | . 11 1 Record 1 | . 1 . Alert Level 3 | . 3 . Locate Traps 3 | . 2 1 Dispatch Records 1 | . 1 . Maintenance Status 1 | . 1 . Security Status 1 | . 1 . Patrol Status 1 | . 1 . Transport Status 1 | . 1 . Fabricator Hacks . | . . . Repair Station Hacks . | . . . Recycling Unit Hacks . | . . . Scanalyzer . | . . . Garrison Access Hacks . | . . . Unauthorized Hacks . | . . . Terminals . | . . . Fabricators . | . . . Repair Stations . | . . . Recycling Units . | . . . Scanalyzers . | . . . Garrison Access . | . . . Data Cores Recovered . | . . . Used . | . . . Hacking Detections 3 | . 2 1 Full Trace Events . | . . . Feedback Events . | . . . Feedback Blocked . | . . . Robot Schematics Acquired . | . . . Robots Built . | . . . Authchips . | . . . Time . | . . . Total Robot Build Rating . | . . . Part Schematics Acquired . | . . . Parts Built . | . . . Authchips . | . . . Time . | . . . Total Part Build Rating . | . . . Parts Repaired . | . . . Time . | . . . Parts Recycled . | . . . Recycled Matter . | . . . Retrieved Matter . | . . . Retrieved Components . | . . . Parts Scanalyzed . | . . . Part Schematics Acquired . | . . . Parts Damaged . | . . . Bothacking | -11 -10 -9 ------------ Run | Yrd Mat Mat Used RIF Installer . | . . . Robots Hacked . | . . . Non-combat . | . . . Combat . | . . . Robot Hacks Applied . | . . . Relay Couplers Released . | . . . Fabnet Peak Effective % . | . . . Robots Rewired . | . . . Allies Hacked . | . . . Hacks Repelled . | . . . Allies | -11 -10 -9 -------- Run | Yrd Mat Mat Total Allies . | . . . Largest Group . | . . . Highest-Rated Group . | . . . Highest-Rated Ally . | . . . Total Orders . | . . . Ally Attacks . | . . . Total Damage . | . . . Kills . | . . . Allies Corrupted . | . . . Allies Melted . | . . . Intel | -11 -10 -9 ------- Run | Yrd Mat Mat Robot Analysis Total . | . . . Derelict Logs Recovered . | . . . Drone Launches . | . . . Drone Recoveries . | . . . Exploration | -11 -10 -9 ------------- Run | Yrd Mat Mat Turns Passed 641 | 72 399 170 Spaces Moved 507 | 61 350 96 Core 20 | 6 . 14 Treads . | . . . Legs 20 | . . 20 Wheels 467 | 55 350 62 Hover . | . . . Flight . | . . . Fastest Speed 50 | 50 100 100 Average Speed 102 | 95 100 114 Slowest Speed 200 | 100 100 200 Overloaded Moves . | . . . Propulsion Burnouts . | . . . Robots Hopped . | . . . Cave-ins Triggered . | . . . Exploration Rate (%) 17 | 3 40 9 Regions Visited 2 Branch Regions . Pre-discovered Areas . | . . . Known Exits Taken . | . . . Unknown Exits Taken 2 | 1 1 . Scrap Searched . | . . . Spaces Dug . | . . . Terrain Destroyed . | . . . Melee . | . . . Projectile . | . . . AOE . | . . . Terrain Rammed . | . . . Walls Destroyed . | . . . Machines Disabled . | . . . Actions | -11 -10 -9 --------- Run | Yrd Mat Mat Total 576 | 72 375 129 Wait . | . . . Move 505 | 60 349 96 Hop . | . . . Pick Up 10 | 6 3 1 Fast Attach 11 | 6 3 2 Attach 7 | . . 7 Detach 2 | . 1 1 Swap . | . . . Drop 4 | . 3 1 Fire 36 | . 15 21 Melee . | . . . Ram 1 | . 1 . Kick . | . . . Crush . | . . . Escape Stasis . | . . . Rewire . | . . . Trap . | . . . Miscellaneous . | . . . Route ------- -11/Scrapyard -10/Materials -9/Materials History --------- Turn | Location | Event 12 | -11/Scrapyard | Discovered new exit (range 16) 73 | -11/Scrapyard | Entered Materials 231 | -10/Materials | Discovered new exit (range 9) 315 | -10/Materials | Build established: Mutant 472 | -10/Materials | Entered another Materials area 472 | -9/Materials | Evolved 2 slots: Propulsion x1, Utility x1 585 | -9/Materials | Core integrity fell below 50% 609 | -9/Materials | Core integrity fell below 20% 618 | -9/Materials | Lost 7 parts (1p2n1u3w) 642 | -9/Materials | Destroyed by Y-45 Defender with Beam Rifle Last Messages --------------- 00574_ Lgt. Assault Rifle destroyed. 00575_ Com. Wheel destroyed. 00578_ Cooling System destroyed. 00580_ Knocked back. 00581_ Acquired 39 matter. 00581_ G-34 Mercenary destroyed. 00582_ Acquired 1 matter. 00584_ Critical hit (Burn: +37). 00585_ R-06 Scavenger collects Sml. Laser. 00586_ R-06 Scavenger collects Aluminum Leg. 00587_ Lgt. Assault Rifle destroyed. 00595_ R-06 Scavenger collects Aluminum Leg. 00599_ K-01 Serf collects debris. 00622_ B-36 Bruiser destroyed. 00627_ Critical hit (Burn: +37). 00630_ K-01 Serf collects debris. 00630_ Acquired Assault Rifle. 00635_ K-01 Serf collects debris. 00640_ G-34 Mercenary destroyed. 00642_ Critical hit (Burn: +37). Map ----- +----------------------------------------------------+ | | | ?????????????????????????????????????????????????? | | ?????????????????????????????????????????????????? | | ?????????????????????????????????????????????????? | | ?????????????????????????????????????????????????? | | ?????????????????????????????????????????????????? | | ?????????????????????????????????????????????????? | | ?????????????????????????????????????????????????? | | ?????????????????????????????????????????????????? | | ?????????????????????????????????????????????????? | | ?????????????????????????????????????????????????? | | ?????????????????????????????????????????????????? | | ?????????????????????????????????????????????????? | | ?????????????????????????????????????????????????? | | ?????????????????????????????????????????????????? | | ?????????????????????????????????????????????????? | | ?????????????????????????????????????????????????? | | ?????????????????????????????????????????????????? | | ?????????????????????????????????????????????????? | | ???????????????????????????????????#####?????????? | | ???????????????????????????????????# #???? ???? | | ???????????????????????????????????# #??"" = ??? | | ???????????????????????????????????# # """ #? | | ?????????????????????############### + #? | | ?????????????????????# # """"" #? | | ?????????????????????# @ #??""""???? | | ?????????????????????#"" ! #????"????? | | ?????????????????????#"" ! """ ###?????????? | | ?????????????????????#"T """ #???????????? | | ?????????????????????#"" """ #???????????? | | ?????????????????????#"" g ###?????????? | | ?????????????????""" # k % %* #?????????? | | ?????????????????""" + |a* #?????????? | | ????????????? #^ /Y! ########??? | | ??????????????? ?# ########### # #??? | | ??????????????? ??# #??# [ # # #??? | | ???????????????? ????# #??# % [# # """#??? | | ?????????????????????# #??#] """=/ % + ! """#??? | | ????????????????????? #??#%""""%#%[=# """#??? | | ????????????????????## ?? /" """!#! # #??? | | ?????????????????????# ??## ?# ########??? | | ?????????????????????##+#???######?# #?????????? | | ???????????????????????????????????# #?????????? | | ???????????????????????????????????# #?????????? | | ???????????????????????????????????# +?????????? | | ???????????????????????????????????# # ????????? | | ???????????????????????????????????# # ????????? | | ???????????????????????????????????# #? ???????? | | ???????????????????????????????????# #? ???????? | | ???????????????????????????????????# #??#??????? | +----------------------------------------------------+ Best States ------------- Heat Dissipation 60 Energy Generation 10 Energy Capacity 250 Matter Stores 300 Matter Capacity 300 Sight Range 16 Terrain Scan Density 10 Armor Coverage 150 Resistance: KI 20 Resistance: TH 20 Resistance: EX 20 Resistance: EM 20 Resistance: I 20 Resistance: S 20 Resistance: P 20 Evasion (%) 55 Offensive Hacking 10 Trap Extractor Capacity 4 Item Schematics ----------------- None Robot Schematics ------------------ None Fabricated ------------ Nothing Alien Tech Used ----------------- None Achievements -------------- None Challenges ------------ None Game ------ Seed LightpackSpliceRecalibrator Manual? 0 Play Time 00:14:41 Cumulative 35.7 hours Start 2024.03.15 @ 21:37:24 End 2024.03.15 @ 21:51:53 Sessions 1 Manual Loads 0 Difficulty Adventurer Special Mode None Game No. 72 Rogue 0 Adventurer 11 Explorer 61 Win Type - Total 0 Types 0/0/0/0/0/0/0/0/0 Lore% 7 Gallery% 27 Achievement% 23 Wizard Run 0 Options --------- Layout 0 ASCII 0 Keyboard 1 Movement Arrows Keybinds 0 Fullscreen 1 Font 18/SmallcapsGlow Map View 76x50 Zoom Use 0% Tactical HUD 1 Map Filters NONE Filters NONE Steam 1 RUN: 4a371e2e-c8e4-40fa-85f1-561e5669b157